bitfinex/quotes_BTCUSD_20251015
["timestamp","ask_amount","ask_price","bid_price","bid_amount"]
[1760539131352,0.17874698,111890.0,111870.0,0.27233575]
[1760539131572,0.17874698,111890.0,111880.0,0.18433673]
[1760539131786,0.17874698,111890.0,111880.0,0.29192296]
[1760539132320,0.55433979,111900.0,111880.0,0.17876296]
[1760539132474,0.36667185,111900.0,111890.0,0.17874698]
[1760539132707,0.54540285,111900.0,111890.0,0.17874698]
[1760539133277,0.20540285,111900.0,111890.0,0.29190698]
[1760539133451,0.02667185,111900.0,111890.0,0.17874698]
[1760539133661,0.52770851,111920.0,111910.0,0.17871503]
[1760539133662,0.18770851,111920.0,111910.0,0.17871503]
[1760539133872,0.17870463,111920.0,111910.0,0.17871503]
[1760539134085,0.17870463,111920.0,111910.0,0.29187503]
[1760539134292,0.20467762,111920.0,111900.0,0.18765849]
[1760539134499,0.54467762,111920.0,111910.0,0.11316]
[1760539134705,0.17871503,111910.0,111900.0,0.17872194]
[1760539135339,0.17871503,111910.0,111900.0,0.29188194]
[1760539135561,0.61791923,111920.0,111900.0,0.17872194]
[1760539135767,0.54467762,111920.0,111900.0,0.17872194]
[1760539136020,0.02597855,111920.0,111910.0,0.18091886]
[1760539136224,0.02597855,111920.0,111910.0,0.29187503]
[1760539136470,0.17868321,111930.0,111910.0,0.29187503]
[1760539136825,0.17869907,111920.0,111910.0,0.29187503]
[1760539137028,0.0233032,111920.0,111910.0,0.29187503]
[1760539137262,0.51868321,111930.0,111920.0,0.17869907]
[1760539137444,0.17868321,111930.0,111920.0,0.17869907]
[1760539137685,0.1786831,111930.0,111920.0,0.17869907]
[1760539137891,0.1786831,111930.0,111910.0,0.17871503]
[1760539138101,0.1786831,111930.0,111920.0,0.29185907]
[1760539138311,0.1786831,111930.0,111910.0,0.35401151]
[1760539138518,0.17869907,111920.0,111910.0,0.26840515]
[1760539138702,0.1786831,111930.0,111910.0,0.38156515]
[1760539138841,0.1786831,111930.0,111910.0,0.26840515]
[1760539139513,0.1786831,111930.0,111920.0,0.17869907]
[1760539139768,0.52825976,111940.0,111920.0,0.17869907]
[1760539139973,0.34058141,111940.0,111930.0,0.1786831]
[1760539140186,0.00058141,111940.0,111930.0,0.1786831]
[1760539140663,0.00058141,111940.0,111930.0,0.26837322]
[1760539141154,0.17924855,111940.0,111930.0,0.38153322]
[1760539141368,0.17924855,111940.0,111930.0,0.26837322]
[1760539141588,0.17924855,111940.0,111930.0,0.08969012]
[1760539141733,0.17924855,111940.0,111930.0,0.26837322]
[1760539142171,0.17866714,111940.0,111930.0,0.26837322]
[1760539142355,0.17866714,111940.0,111930.0,0.38153322]
[1760539142872,0.13432358,111950.0,111930.0,0.38153322]
[1760539143051,0.17865118,111950.0,111940.0,0.18194162]
[1760539143251,0.17865118,111950.0,111940.0,0.29182714]
[1760539143489,0.20116639,111950.0,111930.0,0.3580553]
[1760539143698,0.20116639,111950.0,111940.0,0.00687214]
[1760539144103,0.20116639,111950.0,111940.0,0.29869928]
[1760539144256,0.20116639,111950.0,111940.0,0.29178714]
[1760539144456,0.20116639,111950.0,111940.0,0.17866714]
[1760539144675,0.18763597,111960.0,111940.0,0.18290775]
[1760539144877,0.17865118,111950.0,111940.0,0.29621535]
[1760539145077,0.17865118,111950.0,111940.0,0.17866714]
[1760539145291,0.17865118,111950.0,111940.0,0.27646948]
[1760539145492,0.17865118,111950.0,111940.0,0.26835726]
[1760539145823,0.17865118,111950.0,111940.0,0.38147726]
[1760539145988,0.17865118,111950.0,111940.0,0.26835726]
[1760539146209,0.17865118,111950.0,111940.0,0.38147726]
[1760539146604,0.17865118,111950.0,111940.0,0.26835726]
[1760539146814,0.17865118,111950.0,111940.0,0.20281012]
[1760539147276,0.17865118,111950.0,111940.0,0.08969012]
[1760539147686,0.17865118,111950.0,111940.0,0.38147726]
[1760539148098,0.17865118,111950.0,111940.0,0.26835726]
[1760539148311,0.17865118,111950.0,111940.0,0.20281012]
[1760539148544,0.17865118,111950.0,111940.0,0.11312]
[1760539148762,0.17866714,111940.0,111930.0,0.57868288]
[1760539148958,0.17866714,111940.0,111930.0,0.08969012]
[1760539149166,0.17923251,111950.0,111930.0,0.26837322]
[1760539149614,0.17923251,111950.0,111930.0,0.66837322]
[1760539149837,0.00058133,111950.0,111940.0,0.18013746]
[1760539150059,0.00058133,111950.0,111940.0,0.17866714]
[1760539150258,0.00058133,111950.0,111940.0,0.26835726]
[1760539150418,0.00058133,111950.0,111940.0,0.38147726]
[1760539150617,0.00058133,111950.0,111940.0,0.26835726]
[1760539151031,0.00058133,111950.0,111940.0,1.23109549]
[1760539151210,0.00058133,111950.0,111940.0,1.11797549]
[1760539151616,0.00058133,111950.0,111940.0,1.23109549]
[1760539151821,0.00058133,111950.0,111940.0,1.11797549]
[1760539152266,0.00058133,111950.0,111940.0,1.23109549]
[1760539152464,0.00058133,111950.0,111940.0,1.11797549]
[1760539152615,0.00058133,111950.0,111940.0,0.39522162]
[1760539153043,0.00058133,111950.0,111940.0,0.79622162]
[1760539154117,0.00058133,111950.0,111940.0,1.51997549]
[1760539156054,0.00058133,111950.0,111940.0,0.90930162]
[1760539156262,0.00058133,111950.0,111940.0,1.51997549]
[1760539156451,0.00058133,111950.0,111940.0,1.63305549]
[1760539157295,0.00058133,111950.0,111940.0,1.51997549]
[1760539157470,0.00058133,111950.0,111940.0,1.63305549]
[1760539157685,0.00058133,111950.0,111940.0,1.51997549]
[1760539157882,0.00058133,111950.0,111940.0,1.63305549]
[1760539158260,0.00058133,111950.0,111940.0,1.51997549]
[1760539159103,0.00058133,111950.0,111940.0,1.63305549]
[1760539159304,0.00058133,111950.0,111940.0,1.48379321]
[1760539159585,0.00058133,111950.0,111940.0,1.63305549]
[1760539160187,0.00058133,111950.0,111940.0,1.51997549]
[1760539160617,0.00058133,111950.0,111940.0,1.63305549]
[1760539160800,0.00058133,111950.0,111940.0,1.51997549]
[1760539160956,0.00058133,111950.0,111940.0,1.63305549]
[1760539161199,0.00058133,111950.0,111940.0,1.51997549]
[1760539161808,0.00058133,111950.0,111940.0,1.63305549]
[1760539162482,0.00058133,111950.0,111940.0,1.51997549]
[1760539162668,0.06450136,111980.0,111960.0,0.17862118]
[1760539162869,0.08332948,111980.0,111970.0,0.29169927]
[1760539163027,0.08332948,111980.0,111970.0,0.11308]
[1760539163436,0.08332948,111980.0,111970.0,0.18347035]
[1760539163700,0.08332948,111980.0,111970.0,0.17861927]
[1760539163853,0.1067901,111980.0,111970.0,0.29169927]
[1760539164469,0.1067901,111980.0,111970.0,0.11308]
[1760539165099,0.1067901,111980.0,111960.0,0.2683113]
[1760539165300,0.1077901,111980.0,111970.0,0.11308]
[1760539165882,0.1077901,111980.0,111970.0,0.29169927]
[1760539166091,0.10680065,111980.0,111970.0,0.29169927]
[1760539166334,0.10780065,111980.0,111970.0,0.17861927]
[1760539166529,0.10115124,111980.0,111970.0,0.32581927]
[1760539166766,0.10656623,111980.0,111970.0,0.32581927]
[1760539167277,0.10656623,111980.0,111970.0,0.43889927]
[1760539167484,0.10656623,111980.0,111970.0,0.29169927]
[1760539167684,0.2270942,111980.0,111970.0,0.17861927]
[1760539167893,0.2270942,111980.0,111970.0,0.29169927]
[1760539168316,0.22710451,111980.0,111970.0,0.17861927]
[1760539168725,0.22884796,111980.0,111970.0,0.17861927]
[1760539168873,0.27035755,111980.0,111970.0,0.17861927]
[1760539169092,0.27035755,111980.0,111960.0,0.2683113]
[1760539169325,0.2686141,111980.0,111970.0,0.11304]
[1760539169769,0.2686141,111980.0,111960.0,0.2683113]
[1760539170056,0.2686141,111980.0,111970.0,0.29165927]
[1760539170218,0.22710451,111980.0,111970.0,0.29165927]
[1760539170646,0.22710451,111980.0,111970.0,0.17861927]
[1760539170850,0.22710451,111980.0,111970.0,0.29165927]
[1760539171028,0.22710451,111980.0,111970.0,0.17861927]
[1760539171230,0.22710451,111980.0,111970.0,0.29165927]
[1760539171425,0.22710451,111980.0,111970.0,0.17861927]
[1760539171669,0.22710451,111980.0,111970.0,0.29165927]
[1760539171825,0.22710451,111980.0,111970.0,0.17861927]
[1760539172032,0.22710451,111980.0,111970.0,0.29165927]
[1760539172228,0.22710451,111980.0,111960.0,0.2683113]
[1760539172436,0.2686141,111980.0,111960.0,0.2683113]
[1760539173009,0.2686141,111980.0,111970.0,0.11304]
[1760539173394,0.22710451,111980.0,111960.0,0.2683113]
[1760539173593,0.22710451,111980.0,111970.0,0.17861927]
[1760539173846,0.22710451,111980.0,111970.0,0.29165927]
[1760539174175,0.22710451,111980.0,111970.0,0.17861927]
[1760539174388,0.04850119,111980.0,111970.0,0.17861927]
[1760539174579,0.22710451,111980.0,111970.0,0.29165927]
[1760539174775,0.22710451,111980.0,111970.0,0.17861927]
[1760539174975,0.22710451,111980.0,111970.0,0.29165927]
[1760539175197,0.22884796,111980.0,111960.0,0.2683113]
[1760539175425,0.22710451,111980.0,111960.0,0.2683113]
[1760539175571,0.17861927,111970.0,111960.0,0.2683113]
[1760539175776,0.17861927,111970.0,111960.0,0.20273012]
[1760539175978,0.17865118,111950.0,111930.0,0.1786831]
[1760539176174,0.17865118,111950.0,111940.0,0.3813929]
[1760539176597,0.17865118,111950.0,111940.0,0.08969012]
[1760539176803,0.17865118,111950.0,111940.0,0.38139726]
[1760539177058,0.17865118,111950.0,111940.0,0.26835726]
[1760539178053,0.17865118,111950.0,111940.0,0.38139726]
[1760539178269,0.17865118,111950.0,111940.0,0.08969012]
[1760539178477,0.17866714,111940.0,111920.0,0.58763333]
[1760539178693,0.1786831,111930.0,111920.0,0.27732345]
[1760539178882,0.17866714,111940.0,111920.0,0.27732345]
[1760539179090,0.17866714,111940.0,111930.0,0.1786831]
[1760539179906,0.17866714,111940.0,111930.0,0.2917231]
[1760539180102,0.17866714,111940.0,111930.0,0.1786831]
[1760539180328,0.17866714,111940.0,111930.0,0.2917231]
[1760539180534,0.18814823,111960.0,111940.0,0.17866714]
[1760539180744,0.17865118,111950.0,111940.0,0.17866714]
[1760539180945,0.21268261,111950.0,111940.0,0.11304]
[1760539181147,0.19538186,111950.0,111930.0,0.1786831]
[1760539181352,0.01811099,111940.0,111930.0,0.1786831]
[1760539181593,0.01811099,111940.0,111930.0,0.2917231]
[1760539181727,0.01811099,111940.0,111930.0,0.1786831]
[1760539181941,0.59971808,111960.0,111950.0,0.17865118]
[1760539182332,0.62480994,111960.0,111950.0,0.17865118]
[1760539182553,0.36567311,111960.0,111950.0,0.17865118]
[1760539182761,0.20430833,111960.0,111950.0,0.29169118]
[1760539183121,0.20430833,111960.0,111950.0,0.11304]
[1760539183462,0.19594438,111960.0,111950.0,0.29169118]
[1760539183791,0.19594438,111960.0,111950.0,0.17865118]
[1760539184007,0.19594438,111960.0,111950.0,0.29169118]
[1760539184393,0.01730916,111960.0,111950.0,0.17865118]
[1760539184593,0.19594438,111960.0,111950.0,0.29169118]
[1760539185179,0.26829384,111960.0,111950.0,0.29169118]
[1760539185634,0.26829384,111960.0,111950.0,0.17865118]
[1760539185845,0.17863522,111960.0,111950.0,0.11304]
[1760539186071,0.17866714,111940.0,111930.0,0.08969012]
[1760539186284,0.17866714,111940.0,111930.0,0.26837322]
[1760539186537,0.17866714,111940.0,111930.0,0.11304]
[1760539186753,0.17866714,111940.0,111930.0,0.1786831]
[1760539186962,0.17866714,111940.0,111930.0,0.2917231]
[1760539187169,0.17866714,111940.0,111930.0,0.1786831]
[1760539187616,0.18759522,111950.0,111930.0,0.1786831]
[1760539187854,0.34,111950.0,111940.0,0.18121978]
[1760539188273,0.51865118,111950.0,111940.0,0.29170714]
[1760539188905,0.51865118,111950.0,111930.0,0.26837322]
[1760539189094,0.17865118,111950.0,111940.0,0.17866714]
[1760539189327,0.17865118,111950.0,111940.0,0.29170714]
[1760539189922,0.17865118,111950.0,111940.0,0.17866714]
[1760539190127,0.17865118,111950.0,111940.0,0.29170714]
[1760539190335,0.17865118,111950.0,111940.0,0.17866714]
[1760539191185,0.51865118,111950.0,111940.0,0.29170714]
[1760539191395,0.51865118,111950.0,111940.0,0.17866714]
[1760539191821,0.51865118,111950.0,111940.0,0.29170714]
[1760539192241,0.51865118,111950.0,111940.0,0.17866714]
[1760539192677,0.589273,111950.0,111940.0,0.29170714]
[1760539192870,0.17866714,111940.0,111930.0,0.1786831]
[1760539193304,0.17866714,111940.0,111930.0,0.2917231]
[1760539193505,0.17866714,111940.0,111930.0,0.1786831]
[1760539193918,0.17866714,111940.0,111930.0,0.2917231]
[1760539194133,0.17866714,111940.0,111930.0,0.1786831]
[1760539194341,0.589273,111950.0,111930.0,0.1786831]
[1760539194559,0.01882812,111940.0,111930.0,0.2917231]
[1760539194982,0.01882812,111940.0,111930.0,0.1786831]
[1760539195192,0.19749526,111940.0,111930.0,0.2917231]
[1760539195414,0.17866714,111940.0,111930.0,0.2917231]
[1760539195621,0.17866714,111940.0,111930.0,0.1786831]
[1760539195837,0.17869907,111920.0,111900.0,0.25934417]
[1760539196049,0.17869907,111920.0,111910.0,0.17871503]
[1760539196275,0.17869907,111920.0,111910.0,0.29175503]
[1760539196535,0.17869907,111920.0,111910.0,0.17871503]
[1760539197879,0.17869907,111920.0,111910.0,0.29175503]
[1760539198105,0.17869907,111920.0,111910.0,0.17871503]
[1760539199112,0.17484291,111930.0,111910.0,0.29175503]
[1760539199373,0.1955073,111920.0,111910.0,0.29175503]
[1760539199579,0.17869907,111920.0,111910.0,0.17871503]
[1760539199780,0.17869907,111920.0,111910.0,0.29175503]
[1760539199987,0.17869907,111920.0,111910.0,0.17871503]
[1760539200192,0.17869907,111920.0,111910.0,0.29175503]
[1760539200376,0.22818718,111940.0,111910.0,0.38144515]
[1760539200637,0.53751122,111930.0,111920.0,0.11304]
[1760539200854,0.17871503,111910.0,111890.0,0.58258529]
[1760539201068,0.01882812,111900.0,111890.0,0.18261268]
[1760539201285,0.19755912,111900.0,111890.0,0.0038657]
[1760539201493,0.178731,111900.0,111890.0,0.29565268]
[1760539201709,0.178731,111900.0,111890.0,0.0038657]
[1760539201921,0.178731,111900.0,111890.0,0.18261268]
[1760539202139,0.2144756,111900.0,111890.0,0.0038657]
[1760539202360,0.5544756,111900.0,111890.0,0.0048657]
[1760539202579,0.64416572,111900.0,111890.0,0.0048657]
[1760539203463,5.6686644,111900.0,111890.0,0.0048657]
[1760539203677,5.6686644,111900.0,111890.0,0.0038657]
[1760539203889,5.68535102,111900.0,111890.0,0.0038657]
[1760539204336,5.7215333,111900.0,111890.0,0.0038657]
[1760539204560,5.7225333,111900.0,111890.0,0.0038657]
[1760539205214,0.51879492,111860.0,111850.0,0.0717521]
[1760539205461,0.67824384,111860.0,111850.0,0.0717521]
[1760539205889,0.51881974,111850.0,111840.0,0.17882689]
[1760539206102,0.5188109,111850.0,111840.0,0.17882689]
[1760539206320,0.34,111850.0,111840.0,0.17882689]
[1760539206775,0.5188109,111850.0,111840.0,0.17882689]
[1760539206989,0.34,111850.0,111840.0,0.17882689]
[1760539207211,0.5188109,111850.0,111840.0,0.17882689]
[1760539207426,0.34,111850.0,111840.0,0.17882689]
[1760539208943,0.5188109,111850.0,111840.0,0.17882689]
[1760539209156,0.57337925,111850.0,111840.0,0.17882689]
[1760539209344,0.17882689,111840.0,111830.0,0.0040742]
[1760539209583,0.57337925,111850.0,111830.0,0.18291708]
[1760539209787,0.19765501,111840.0,111830.0,0.18291708]
[1760539209996,0.24123204,111840.0,111830.0,0.18291708]
[1760539210208,0.24123204,111840.0,111830.0,0.29599708]
[1760539210416,0.06240515,111840.0,111830.0,0.29599708]
[1760539210619,0.01882812,111840.0,111830.0,0.29599708]
[1760539210830,0.19765501,111840.0,111830.0,0.18291708]
[1760539211046,0.17882689,111840.0,111830.0,0.0040742]
[1760539211254,0.2540475,111840.0,111830.0,0.18291708]
[1760539211479,0.6303456,111840.0,111830.0,0.0040742]
[1760539211700,5.79731367,111840.0,111830.0,0.0050742]
[1760539212198,5.79731367,111840.0,111830.0,0.0040742]
[1760539212199,5.81643418,111840.0,111830.0,0.0040742]
[1760539212407,5.79731367,111840.0,111830.0,0.0040742]
[1760539212622,5.51884288,111830.0,111820.0,0.0004]
[1760539212837,5.66764442,111830.0,111820.0,0.0004]
[1760539213051,0.55504116,111820.0,111810.0,0.0004]
[1760539213299,5.64473128,111820.0,111810.0,0.0004]
[1760539213731,5.66131259,111820.0,111810.0,0.0004]
[1760539213951,0.51890687,111790.0,111780.0,0.0717521]
[1760539214170,0.66316534,111790.0,111780.0,0.0717521]
[1760539214394,0.17892288,111780.0,111770.0,0.0002]
[1760539214614,0.57347522,111790.0,111770.0,0.0002]
[1760539214842,0.197751,111780.0,111770.0,0.0002]
[1760539215055,0.17892288,111780.0,111770.0,0.0002]
[1760539215266,0.20582758,111780.0,111770.0,0.0002]
[1760539216794,0.24228775,111780.0,111770.0,0.0002]
[1760539218108,0.06336487,111780.0,111770.0,0.17913889]
[1760539218352,0.34,111790.0,111770.0,0.18808583]
[1760539218590,5.0,111810.0,111800.0,0.17888597]
[1760539218816,0.15356404,111810.0,111800.0,0.17888597]
[1760539219032,0.17889087,111800.0,111790.0,0.18785221]
[1760539219252,0.55585996,111810.0,111790.0,0.18785221]
[1760539219468,0.01533074,111800.0,111790.0,0.18785221]
[1760539220542,0.19422161,111800.0,111790.0,0.18785221]
[1760539220731,0.17889087,111800.0,111790.0,0.18785221]
[1760539220867,0.07347508,111800.0,111790.0,0.18785221]
[1760539221093,0.0923032,111800.0,111790.0,0.18785221]
[1760539221295,0.55585996,111810.0,111790.0,0.18885221]
[1760539221571,0.55585996,111810.0,111800.0,0.17889087]
[1760539221698,0.55585996,111810.0,111790.0,0.30197221]
[1760539221898,0.55585996,111810.0,111800.0,0.17889087]
[1760539222317,0.17889087,111800.0,111790.0,0.30101221]
[1760539222613,0.17889087,111800.0,111790.0,0.17890687]
[1760539222860,0.17889087,111800.0,111790.0,0.29206687]
[1760539223122,0.17889087,111800.0,111790.0,0.17890687]
[1760539223576,0.50462403,111810.0,111790.0,0.17890687]
[1760539223802,0.01882812,111800.0,111790.0,0.17890687]
[1760539224013,0.54076929,111810.0,111790.0,0.17890687]
[1760539224226,0.54076929,111810.0,111800.0,0.17889087]
[1760539224441,0.54076929,111810.0,111800.0,0.00174725]
[1760539224891,0.50462403,111810.0,111800.0,0.00174725]
[1760539226326,0.50462403,111810.0,111800.0,0.18063812]
[1760539226550,0.02689571,111820.0,111800.0,0.29379812]
[1760539226764,0.537687,111820.0,111810.0,0.17887487]
[1760539226977,0.537687,111820.0,111800.0,0.29205087]
[1760539226978,0.51885888,111820.0,111800.0,0.29205087]
[1760539227238,0.18778502,111830.0,111820.0,0.17885888]
[1760539227239,0.02689395,111830.0,111820.0,0.17885888]
[1760539227463,0.02689395,111830.0,111820.0,0.73581423]
[1760539227676,0.0717521,111860.0,111840.0,0.17881736]
[1760539227912,0.0717521,111860.0,111850.0,0.2919695]
[1760539227913,0.00717521,111860.0,111850.0,0.2919695]
[1760539228162,0.14274715,111880.0,111860.0,0.17879492]
[1760539228382,0.1787901,111870.0,111850.0,0.2919695]
[1760539228596,0.17879492,111860.0,111850.0,0.1788109]
[1760539228819,0.17879492,111860.0,111850.0,0.2919709]
[1760539229038,0.1787901,111870.0,111850.0,0.2919709]
[1760539229251,0.17879492,111860.0,111850.0,0.1788109]
[1760539229469,0.17879492,111860.0,111850.0,0.001]
[1760539229681,0.17879492,111860.0,111850.0,0.2929709]
[1760539229893,0.17879492,111860.0,111850.0,0.001]
[1760539230126,0.17879492,111860.0,111850.0,0.1798109]
[1760539230338,0.17879492,111860.0,111850.0,0.11412]
[1760539230542,0.17879492,111860.0,111850.0,0.2919309]
[1760539230969,0.1788109,111850.0,111840.0,0.08969012]
[1760539231250,0.17884288,111830.0,111820.0,0.18780182]
[1760539231468,0.17884288,111830.0,111820.0,0.08969012]
[1760539231648,0.17884288,111830.0,111820.0,0.20281012]
[1760539232143,0.17885888,111820.0,111800.0,0.18783541]
[1760539232381,0.51885888,111820.0,111810.0,0.00116473]
[1760539232586,0.57260108,111820.0,111810.0,0.00116473]
[1760539232794,0.53551274,111820.0,111810.0,0.00116473]
[1760539233010,0.56699359,111820.0,111810.0,0.11428473]
[1760539233214,0.56699359,111820.0,111810.0,0.00116473]
[1760539233422,0.53551274,111820.0,111810.0,0.00116473]
[1760539233633,0.35665386,111820.0,111810.0,0.2931596]
[1760539233844,0.53551274,111820.0,111810.0,0.00116473]
[1760539234055,0.53551274,111820.0,111810.0,0.11428473]
[1760539234268,0.60811633,111820.0,111810.0,0.00116473]
[1760539234900,0.60811633,111820.0,111810.0,0.00216473]
[1760539235321,0.60813194,111820.0,111810.0,0.00116473]
[1760539236068,0.53552835,111820.0,111810.0,0.1800396]
[1760539236274,0.53552835,111820.0,111810.0,0.00116473]
[1760539237001,0.53552835,111820.0,111810.0,0.1800396]
[1760539237220,0.53552835,111820.0,111810.0,0.00116473]
[1760539237461,0.53652835,111820.0,111810.0,0.00116473]
[1760539237695,0.61078746,111820.0,111810.0,0.00116473]
[1760539239796,0.53552835,111820.0,111810.0,0.00116473]
[1760539240732,0.62621847,111820.0,111810.0,0.00116473]
[1760539240982,0.64443288,111820.0,111810.0,0.00116473]
[1760539241217,5.64443288,111820.0,111810.0,0.00116473]
[1760539241680,5.68061516,111820.0,111810.0,0.00116473]
[1760539241892,5.77129724,111820.0,111810.0,0.00116473]
[1760539242124,5.77229724,111820.0,111810.0,0.00116473]
[1760539242349,5.77129724,111820.0,111810.0,0.00116473]
[1760539243431,5.77031837,111820.0,111810.0,0.00116473]
[1760539243658,5.77131837,111820.0,111810.0,1e-08]
[1760539243898,5.79536847,111820.0,111810.0,1e-08]
[1760539244339,5.82739028,111820.0,111810.0,1e-08]
[1760539244565,5.80334018,111820.0,111810.0,1e-08]
[1760539244787,5.82836308,111820.0,111810.0,1e-08]
[1760539245008,5.82736308,111820.0,111810.0,1e-08]
[1760539245231,5.82636308,111820.0,111810.0,1e-08]
[1760539245455,5.82936308,111820.0,111810.0,1e-08]
[1760539246600,5.79734127,111820.0,111810.0,1e-08]
[1760539247691,5.81534018,111820.0,111810.0,1e-08]
[1760539248162,5.90947018,111820.0,111810.0,1e-08]
[1760539248390,5.86349549,111820.0,111810.0,1e-08]
[1760539248625,0.55508915,111790.0,111780.0,1e-08]
[1760539248852,5.7437203,111790.0,111780.0,1e-08]
[1760539249066,5.51892288,111780.0,111770.0,0.0002]
[1760539249261,5.64451801,111780.0,111770.0,0.0002]
[1760539249525,5.62529118,111780.0,111770.0,0.0002]
[1760539250199,0.62529118,111780.0,111770.0,0.0002]
[1760539250656,0.71237338,111780.0,111770.0,0.0002]
[1760539252003,5.71237338,111780.0,111770.0,0.0002]
[1760539252769,5.73928255,111780.0,111770.0,0.0002]
[1760539253083,5.79464036,111780.0,111770.0,0.0002]
[1760539253266,5.79564044,111780.0,111770.0,0.0002]
[1760539253482,5.77544116,111780.0,111770.0,0.0002]
[1760539253956,5.77644116,111780.0,111770.0,0.0002]
[1760539254161,5.74025888,111780.0,111770.0,0.0002]
[1760539254389,5.74125888,111780.0,111770.0,0.0002]
[1760539254840,5.74125888,111780.0,111770.0,0.00253049]
[1760539257799,5.72460437,111780.0,111770.0,0.00253049]
[1760539258040,5.74124236,111780.0,111770.0,0.00253049]
[1760539259726,5.72460437,111780.0,111770.0,0.00253049]
[1760539259951,5.74126137,111780.0,111770.0,0.00253049]
[1760539260417,5.79664921,111780.0,111770.0,0.00253049]
[1760539261155,5.65417917,111780.0,111770.0,0.00253049]
[1760539261595,5.67339604,111780.0,111770.0,0.00253049]
[1760539261822,5.70957832,111780.0,111770.0,0.00253049]
[1760539262249,5.68166915,111780.0,111770.0,0.00253049]
[1760539262747,5.68266915,111780.0,111770.0,0.00253049]
[1760539263191,5.77235123,111780.0,111770.0,0.00253049]
[1760539263631,5.77135123,111780.0,111770.0,0.00253049]
[1760539264086,5.77235123,111780.0,111770.0,0.00253049]
[1760539264335,0.5189549,111760.0,111740.0,0.0002]
[1760539264566,0.64484331,111750.0,111740.0,0.0002]
[1760539264778,0.72453633,111750.0,111740.0,0.0002]
[1760539265476,0.51898693,111740.0,111730.0,0.0002]
[1760539265702,0.51898693,111740.0,111720.0,0.05]
[1760539265703,0.55518523,111730.0,111720.0,0.05]
[1760539265963,5.68076047,111730.0,111720.0,0.05]
[1760539266187,5.70478834,111730.0,111720.0,0.05]
[1760539266418,5.79447042,111730.0,111720.0,0.05291495]
[1760539266650,5.77044255,111730.0,111720.0,0.05291495]
[1760539267317,5.55520125,111720.0,111710.0,0.0002]
[1760539267559,5.68077649,111720.0,111710.0,0.0002]
[1760539268003,5.69961414,111720.0,111710.0,0.0002]
[1760539268230,5.77932397,111720.0,111710.0,0.0002]
[1760539268688,5.77932397,111720.0,111710.0,1e-08]
[1760539269327,0.519035,111710.0,111700.0,1e-08]
[1760539269561,5.5552333,111700.0,111690.0,0.44827111]
[1760539269785,5.77050743,111700.0,111690.0,0.40825131]
[1760539270011,5.77050743,111700.0,111690.0,0.37994283]
[1760539270983,5.77150743,111700.0,111690.0,0.37994283]
[1760539271214,5.77350743,111700.0,111690.0,0.37994283]
[1760539271478,5.55179538,111700.0,111690.0,0.37994283]
[1760539271728,5.60179615,111700.0,111690.0,0.37994283]
[1760539272002,5.60179615,111700.0,111670.0,0.00028]
[1760539272003,5.38355409,111680.0,111670.0,0.00028]
[1760539272263,5.55295404,111680.0,111670.0,0.00028]
[1760539273384,5.55495404,111680.0,111670.0,0.00028]
[1760539273821,5.55495404,111680.0,111670.0,0.0031969]
[1760539274263,5.49191802,111680.0,111670.0,0.0031969]
[1760539278383,5.4918494,111680.0,111670.0,0.0031969]
[1760539278608,0.17914725,111640.0,111630.0,0.11235211]
[1760539278821,0.51914725,111640.0,111630.0,0.11235211]
[1760539279049,0.58897649,111640.0,111630.0,0.04060001]
[1760539279286,0.67866661,111640.0,111630.0,0.04293489]
[1760539279517,5.55974362,111640.0,111630.0,0.04293489]
[1760539280665,5.56074362,111640.0,111630.0,0.04293489]
[1760539280878,5.55974362,111640.0,111630.0,0.04293489]
[1760539281101,0.44629613,111640.0,111630.0,0.22209819]
[1760539281317,0.35660601,111640.0,111630.0,0.22209819]
[1760539281755,0.53575326,111640.0,111630.0,0.04293489]
[1760539282013,0.62544338,111640.0,111630.0,0.04293489]
[1760539282226,0.44629613,111640.0,111630.0,0.22209819]
[1760539282437,0.51083895,111640.0,111630.0,0.22209819]
[1760539282861,0.50983895,111640.0,111630.0,0.22209819]
[1760539283071,0.50883895,111640.0,111630.0,0.22209819]
[1760539283349,0.6879862,111640.0,111630.0,0.22209819]
[1760539283828,0.01660601,111640.0,111630.0,0.22209819]
[1760539284519,0.01658303,111640.0,111630.0,0.22209819]
[1760539284760,0.01658303,111640.0,111630.0,0.22209463]
[1760539284981,0.53571475,111650.0,111630.0,0.22209463]
[1760539285227,0.17914725,111640.0,111630.0,0.04060001]
[1760539285446,0.36587561,111640.0,111630.0,0.04060001]
[1760539285904,0.18672836,111640.0,111630.0,0.04060001]
[1760539286128,0.10627315,111640.0,111630.0,0.04060001]
[1760539286342,0.2854204,111640.0,111630.0,0.04060001]
[1760539287832,0.01658303,111640.0,111630.0,0.21976331]
[1760539288090,0.19573028,111640.0,111630.0,0.04060001]
[1760539288329,0.26721648,111640.0,111630.0,0.04060001]
[1760539288615,0.35693611,111640.0,111630.0,0.04060001]
[1760539288839,0.42809874,111640.0,111630.0,0.21976331]
[1760539289059,0.60724599,111640.0,111630.0,0.21976331]
[1760539289493,0.60724599,111640.0,111630.0,0.04060001]
[1760539289938,0.69693611,111640.0,111630.0,0.04060001]
[1760539290911,5.56140711,111640.0,111630.0,0.04060001]
[1760539291169,5.56332703,111640.0,111630.0,0.04060001]
[1760539291399,5.56332703,111640.0,111630.0,0.04293489]
[1760539291634,5.58589136,111640.0,111630.0,0.04293489]
[1760539292067,5.61023907,111640.0,111630.0,0.04293489]
[1760539292529,5.64325135,111640.0,111630.0,1e-08]
[1760539292743,5.64325135,111640.0,111610.0,0.05]
[1760539292744,5.38365035,111620.0,111610.0,0.05]
[1760539292954,5.57501655,111620.0,111610.0,0.05]
[1760539293173,5.5711849,111620.0,111610.0,0.05]
[1760539293394,0.14332762,111620.0,111610.0,0.05]
[1760539293615,0.14332762,111620.0,111610.0,0.22919541]
[1760539293829,0.32250697,111620.0,111610.0,0.05]
[1760539294066,0.19349487,111620.0,111610.0,0.22419541]
[1760539294318,0.14432762,111620.0,111610.0,0.22419541]
[1760539294546,0.66350697,111620.0,111610.0,0.045]
[1760539295691,0.66450697,111620.0,111610.0,0.045]
[1760539296114,0.66250697,111620.0,111610.0,0.045]
[1760539296351,0.74667422,111620.0,111610.0,0.045]
[1760539296576,5.63040376,111620.0,111610.0,0.045]
[1760539297080,5.65443163,111620.0,111610.0,0.045]
[1760539298278,5.65453789,111620.0,111610.0,0.045]
[1760539298479,5.63051002,111620.0,111610.0,0.04616786]
[1760539298693,5.63151002,111620.0,111610.0,0.04616786]
[1760539299169,5.65447174,111620.0,111610.0,0.04616786]
[1760539299380,5.65547174,111620.0,111610.0,0.04616786]
[1760539299613,5.65647174,111620.0,111610.0,0.04616786]
[1760539299828,5.63244387,111620.0,111610.0,0.04616786]
[1760539300465,5.65647174,111620.0,111610.0,0.04616786]
[1760539300694,5.65647174,111620.0,111610.0,1e-08]
[1760539300928,0.51926079,111570.0,111560.0,0.0717521]
[1760539301146,0.69422054,111570.0,111560.0,0.0717521]
[1760539301396,0.51927572,111560.0,111550.0,0.0002]